[Event "Early-Titled-Tuesday-Blitz-January-23-2024"]
[Site "Chess.com"]
[Date "2024.01.23"]
[Round "8"]
[White "ural58"]
[Black "Casper"]
[Result "1/2-1/2"]
[WhiteElo "2449"]
[BlackElo "2561"]
[TimeControl "180+1"]
[EndTime "9:28:57 PST"]
[Termination "Game drawn by repetition"]

1. e4 {[%clk 0:03:00.9]} 1... c6 {[%clk 0:02:59.1]} 2. Nf3 {[%clk 0:03:00]} 2...
d5 {[%clk 0:03:00]} 3. Nc3 {[%clk 0:03:00]} 3... dxe4 {[%clk 0:03:00]} 4. Nxe4
{[%clk 0:03:00.1]} 4... Nf6 {[%clk 0:03:00.9]} 5. Qe2 {[%clk 0:03:00.3]} 5...
Nxe4 {[%clk 0:02:59.9]} 6. Qxe4 {[%clk 0:03:00.4]} 6... Nd7 {[%clk 0:03:00.1]}
7. d4 {[%clk 0:02:57.6]} 7... Nf6 {[%clk 0:03:00.3]} 8. Qd3 {[%clk 0:02:56.3]}
8... Bg4 {[%clk 0:02:57.1]} 9. Be2 {[%clk 0:02:54.1]} 9... e6 {[%clk 0:02:56.5]}
10. Bd2 {[%clk 0:02:52]} 10... Be7 {[%clk 0:02:54.2]} 11. O-O-O {[%clk
0:02:47.8]} 11... Qd5 {[%clk 0:02:49.9]} 12. Kb1 {[%clk 0:02:45.8]} 12... O-O-O
{[%clk 0:02:49.9]} 13. Be3 {[%clk 0:02:30.7]} 13... Bf5 {[%clk 0:02:42.9]} 14.
Qb3 {[%clk 0:02:29.1]} 14... Qxb3 {[%clk 0:02:34.6]} 15. axb3 {[%clk 0:02:28.7]}
15... Ng4 {[%clk 0:02:35.4]} 16. Nd2 {[%clk 0:02:02.1]} 16... h5 {[%clk
0:02:20.6]} 17. h3 {[%clk 0:01:59.4]} 17... Nxe3 {[%clk 0:02:20]} 18. fxe3
{[%clk 0:02:00.3]} 18... Bg5 {[%clk 0:02:12.9]} 19. Nf1 {[%clk 0:01:44.8]} 19...
Be4 {[%clk 0:01:56.4]} 20. Rg1 {[%clk 0:01:42.1]} 20... h4 {[%clk 0:01:55.8]}
21. Bd3 {[%clk 0:01:39.2]} 21... f5 {[%clk 0:01:23.6]} 22. Bxe4 {[%clk
0:01:25.2]} 22... fxe4 {[%clk 0:01:24.5]} 23. c3 {[%clk 0:01:25.2]} 23... Rhf8
{[%clk 0:01:23.9]} 24. Rd2 {[%clk 0:01:24]} 24... e5 {[%clk 0:01:21.2]} 25. Re2
{[%clk 0:01:24.1]} 25... exd4 {[%clk 0:01:18.9]} 26. exd4 {[%clk 0:01:22.1]}
26... c5 {[%clk 0:01:03.6]} 27. Rxe4 {[%clk 0:01:19.6]} 27... cxd4 {[%clk
0:01:00.4]} 28. Rxd4 {[%clk 0:01:12.7]} 28... Rxd4 {[%clk 0:00:51.9]} 29. cxd4
{[%clk 0:01:07.7]} 29... Rf2 {[%clk 0:00:48]} 30. Nh2 {[%clk 0:01:07.7]} 30...
Be3 {[%clk 0:00:46.4]} 31. Rd1 {[%clk 0:00:51.4]} 31... Rxg2 {[%clk 0:00:43.9]}
32. Ng4 {[%clk 0:00:48.3]} 32... Bd2 {[%clk 0:00:35.8]} 33. d5 {[%clk
0:00:43.5]} 33... Kd7 {[%clk 0:00:35.2]} 34. Ne5+ {[%clk 0:00:40.8]} 34... Kd8
{[%clk 0:00:28.4]} 35. Nf3 {[%clk 0:00:40.3]} 35... Bf4 {[%clk 0:00:25.6]} 36.
Rd4 {[%clk 0:00:35.1]} 36... g5 {[%clk 0:00:23.7]} 37. Nxh4 {[%clk 0:00:30.6]}
37... Be5 {[%clk 0:00:21]} 38. Nxg2 {[%clk 0:00:29.7]} 38... Bxd4 {[%clk
0:00:21]} 39. Kc2 {[%clk 0:00:27.6]} 39... Kd7 {[%clk 0:00:21.6]} 40. Kd3 {[%clk
0:00:27.2]} 40... Bxb2 {[%clk 0:00:21.6]} 41. Ke4 {[%clk 0:00:27]} 41... a5
{[%clk 0:00:16.7]} 42. Ne1 {[%clk 0:00:27]} 42... b5 {[%clk 0:00:16.5]} 43. Nd3
{[%clk 0:00:24.1]} 43... Bf6 {[%clk 0:00:16.1]} 44. Nc5+ {[%clk 0:00:19.9]}
44... Kc7 {[%clk 0:00:15.6]} 45. Kf5 {[%clk 0:00:18.9]} 45... Be7 {[%clk
0:00:15.5]} 46. Ne6+ {[%clk 0:00:17.2]} 46... Kd6 {[%clk 0:00:16.1]} 47. Ke4
{[%clk 0:00:17.7]} 47... a4 {[%clk 0:00:13.5]} 48. bxa4 {[%clk 0:00:17.7]} 48...
bxa4 {[%clk 0:00:14.4]} 49. Nd4 {[%clk 0:00:17.5]} 49... Bf6 {[%clk 0:00:13.5]}
50. Nb5+ {[%clk 0:00:17]} 50... Kc5 {[%clk 0:00:13.5]} 51. Na3 {[%clk
0:00:16.9]} 51... Bb2 {[%clk 0:00:14]} 52. Nb1 {[%clk 0:00:16.6]} 52... a3
{[%clk 0:00:14.3]} 53. Nxa3 {[%clk 0:00:16.5]} 53... Bxa3 {[%clk 0:00:15.2]} 54.
Kf5 {[%clk 0:00:16.5]} 54... Bc1 {[%clk 0:00:15.3]} 55. Kg4 {[%clk 0:00:15.9]}
55... Kxd5 {[%clk 0:00:11.6]} 56. h4 {[%clk 0:00:16.8]} 56... Ke6 {[%clk
0:00:12.2]} 57. hxg5 {[%clk 0:00:16.6]} 57... Kf7 {[%clk 0:00:12.9]} 58. g6+
{[%clk 0:00:16.8]} 58... Kg8 {[%clk 0:00:13.5]} 59. Kf3 {[%clk 0:00:17.7]} 59...
Bb2 {[%clk 0:00:13.7]} 60. Ke2 {[%clk 0:00:18.6]} 60... Ba3 {[%clk 0:00:14.6]}
61. Kd1 {[%clk 0:00:19.4]} 61... Bb4 {[%clk 0:00:15.5]} 62. Ke2 {[%clk
0:00:20.3]} 62... Ba5 {[%clk 0:00:16.4]} 63. Kd1 {[%clk 0:00:21.2]} 63... Bb6
{[%clk 0:00:17.3]} 64. Ke2 {[%clk 0:00:22.1]} 64... Ba7 {[%clk 0:00:18.2]} 65.
Kd1 {[%clk 0:00:23]} 65... Bb8 {[%clk 0:00:19.1]} 66. Ke2 {[%clk 0:00:23.9]}
66... Bc7 {[%clk 0:00:20]} 67. Kd1 {[%clk 0:00:24.8]} 67... Bd8 {[%clk
0:00:20.9]} 68. Ke2 {[%clk 0:00:25.7]} 68... Be7 {[%clk 0:00:21.8]} 69. Kd1
{[%clk 0:00:26.6]} 69... Bf8 {[%clk 0:00:22.7]} 70. Ke2 {[%clk 0:00:27.4]} 70...
Bg7 {[%clk 0:00:23.6]} 71. Kd1 {[%clk 0:00:28.3]} 71... Bh6 {[%clk 0:00:24.5]}
72. Ke2 {[%clk 0:00:29.1]} 72... Bg5 {[%clk 0:00:25.4]} 73. Kd1 {[%clk 0:00:30]}
73... Bf6 {[%clk 0:00:26.3]} 74. Ke2 {[%clk 0:00:30.9]} 74... Be5 {[%clk
0:00:27.2]} 75. Kd1 {[%clk 0:00:31.8]} 75... Bd6 {[%clk 0:00:28.1]} 76. Ke2
{[%clk 0:00:32.7]} 76... Bc7 {[%clk 0:00:29]} 77. Kd1 {[%clk 0:00:33.6]} 77...
Bb8 {[%clk 0:00:29.9]} 78. Ke2 {[%clk 0:00:34.5]} 78... Ba7 {[%clk 0:00:30.8]}
79. Kd1 {[%clk 0:00:35.4]} 79... Bb6 {[%clk 0:00:31.7]} 80. Ke2 {[%clk
0:00:36.3]} 80... Ba5 {[%clk 0:00:32.6]} 81. Kd1 {[%clk 0:00:37.2]} 81... Bb4
{[%clk 0:00:33.5]} 82. Ke2 {[%clk 0:00:38.1]} 82... Bc5 {[%clk 0:00:34.4]} 83.
Kd1 {[%clk 0:00:39]} 83... Bd6 {[%clk 0:00:35.3]} 84. Ke2 {[%clk 0:00:39.9]}
84... Be7 {[%clk 0:00:36.2]} 85. Kd1 {[%clk 0:00:40.8]} 85... Bf8 {[%clk
0:00:37.1]} 86. Ke2 {[%clk 0:00:41.7]} 86... Bg7 {[%clk 0:00:38]} 87. Kd1 {[%clk
0:00:42.6]} 87... Bh8 {[%clk 0:00:38.9]} 88. Ke2 {[%clk 0:00:43.5]} 88... Bg7
{[%clk 0:00:39.8]} 1/2-1/2

[Event "Early-Titled-Tuesday-Blitz-January-23-2024"]
[Site "Chess.com"]
[Date "2024.01.23"]
[Round "8"]
[White "doctorcristian"]
[Black "Young_Catalan_Player09"]
[Result "1-0"]
[WhiteElo "2621"]
[BlackElo "2567"]
[TimeControl "180+1"]
[EndTime "9:28:58 PST"]
[Termination "doctorcristian won by resignation"]

1. d4 {[%clk 0:02:55.5]} 1... Nf6 {[%clk 0:02:58.9]} 2. Nc3 {[%clk 0:02:55]}
2... d5 {[%clk 0:02:58.4]} 3. Bf4 {[%clk 0:02:55.6]} 3... g6 {[%clk 0:02:57.4]}
4. Qd2 {[%clk 0:02:55.4]} 4... h5 {[%clk 0:02:45.7]} 5. f3 {[%clk 0:02:54.5]}
5... Bg7 {[%clk 0:02:44.9]} 6. O-O-O {[%clk 0:02:53.1]} 6... O-O {[%clk
0:02:42.3]} 7. e4 {[%clk 0:02:53.4]} 7... c5 {[%clk 0:02:34.8]} 8. dxc5 {[%clk
0:02:51]} 8... d4 {[%clk 0:02:35]} 9. Qxd4 {[%clk 0:02:42.8]} 9... Qa5 {[%clk
0:02:25.9]} 10. Qc4 {[%clk 0:02:30.7]} 10... Nc6 {[%clk 0:02:23.7]} 11. Qb5
{[%clk 0:02:31]} 11... Be6 {[%clk 0:02:08.6]} 12. Qxa5 {[%clk 0:02:22]} 12...
Nxa5 {[%clk 0:02:06.5]} 13. b3 {[%clk 0:02:14.7]} 13... Rfc8 {[%clk 0:01:48.7]}
14. Na4 {[%clk 0:02:10]} 14... Nd7 {[%clk 0:01:48.2]} 15. Be3 {[%clk 0:01:57.3]}
15... Nc6 {[%clk 0:01:22.8]} 16. Bb5 {[%clk 0:01:54.4]} 16... a6 {[%clk
0:01:21]} 17. Bxc6 {[%clk 0:01:53]} 17... Rxc6 {[%clk 0:01:15.6]} 18. Ne2 {[%clk
0:01:48.9]} 18... Rac8 {[%clk 0:00:54.5]} 19. Nf4 {[%clk 0:01:44.2]} 19... Bh6
{[%clk 0:00:49.9]} 20. Kb1 {[%clk 0:01:39.1]} 20... Bxf4 {[%clk 0:00:47.7]} 21.
Bxf4 {[%clk 0:01:39]} 21... Nxc5 {[%clk 0:00:48.6]} 22. Nxc5 {[%clk 0:01:38.5]}
22... Rxc5 {[%clk 0:00:49.5]} 23. Rd2 {[%clk 0:01:38.4]} 23... b5 {[%clk
0:00:48.9]} 24. Rhd1 {[%clk 0:01:36.6]} 24... Kg7 {[%clk 0:00:45.8]} 25. Be3
{[%clk 0:01:36.2]} 25... R5c6 {[%clk 0:00:44]} 26. h4 {[%clk 0:01:32.8]} 26...
f6 {[%clk 0:00:43.6]} 27. Bd4 {[%clk 0:01:26.8]} 27... Kf7 {[%clk 0:00:43.4]}
28. e5 {[%clk 0:01:22.3]} 28... g5 {[%clk 0:00:39.4]} 29. exf6 {[%clk
0:01:21.8]} 29... exf6 {[%clk 0:00:37.4]} 30. hxg5 {[%clk 0:01:22]} 30... fxg5
{[%clk 0:00:37.8]} 31. Re1 {[%clk 0:01:22.5]} 31... Bf5 {[%clk 0:00:36.6]} 32.
Ree2 {[%clk 0:01:17.8]} 32... Rd8 {[%clk 0:00:27.6]} 33. Be3 {[%clk 0:01:11.9]}
33... Re8 {[%clk 0:00:25.3]} 34. Bxg5 {[%clk 0:01:10.9]} 34... Rxe2 {[%clk
0:00:22.7]} 35. Rxe2 {[%clk 0:01:10.7]} 35... Kg6 {[%clk 0:00:23.3]} 36. Bf4
{[%clk 0:01:08.3]} 36... h4 {[%clk 0:00:23.1]} 37. Kb2 {[%clk 0:01:07.3]} 37...
b4 {[%clk 0:00:23.3]} 38. Be5 {[%clk 0:00:59]} 38... Re6 {[%clk 0:00:19.4]} 39.
c3 {[%clk 0:00:58.6]} 39... bxc3+ {[%clk 0:00:19.1]} 40. Kxc3 {[%clk 0:00:59.1]}
40... Kg5 {[%clk 0:00:19.5]} 41. Kd4 {[%clk 0:00:58.4]} 41... Rc6 {[%clk
0:00:19.2]} 42. Kd5 {[%clk 0:00:54.4]} 42... Rc1 {[%clk 0:00:18.8]} 43. Bd6
{[%clk 0:00:54]} 43... Rd1+ {[%clk 0:00:19]} 44. Kc5 {[%clk 0:00:54.4]} 44...
Rc1+ {[%clk 0:00:17.1]} 45. Kb6 {[%clk 0:00:53.2]} 45... Bd3 {[%clk 0:00:17.2]}
46. Rd2 {[%clk 0:00:50.9]} 46... Bb5 {[%clk 0:00:16.7]} 47. a4 {[%clk
0:00:50.6]} 47... Bf1 {[%clk 0:00:15.6]} 48. Be7+ {[%clk 0:00:50]} 48... Kf5
{[%clk 0:00:15.8]} 49. Bxh4 {[%clk 0:00:49.2]} 49... Ke6 {[%clk 0:00:15.2]} 50.
Bg5 {[%clk 0:00:44.6]} 50... Rb1 {[%clk 0:00:15.2]} 51. Kc5 {[%clk 0:00:28.1]}
51... Rxb3 {[%clk 0:00:15]} 52. Rf2 {[%clk 0:00:28]} 52... Bd3 {[%clk
0:00:14.3]} 53. f4 {[%clk 0:00:27.4]} 53... Kf5 {[%clk 0:00:14]} 54. Bd8 {[%clk
0:00:25.6]} 54... Be4 {[%clk 0:00:13.8]} 55. Bc7 {[%clk 0:00:20.9]} 55... Kg4
{[%clk 0:00:10.8]} 56. Re2 {[%clk 0:00:20.6]} 56... Bb7 {[%clk 0:00:08.8]} 57.
Re6 {[%clk 0:00:19.9]} 57... Kf5 {[%clk 0:00:07.6]} 58. Re7 {[%clk 0:00:18.6]}
58... Ba8 {[%clk 0:00:05.8]} 59. Rg7 {[%clk 0:00:18.5]} 59... Ke4 {[%clk
0:00:05.5]} 60. g4 {[%clk 0:00:18.6]} 60... Rc3+ {[%clk 0:00:03.2]} 61. Kb6
{[%clk 0:00:18.4]} 61... Rc6+ {[%clk 0:00:03.2]} 62. Ka7 {[%clk 0:00:18.6]} 1-0

[Event "Early-Titled-Tuesday-Blitz-January-23-2024"]
[Site "Chess.com"]
[Date "2024.01.23"]
[Round "8"]
[White "NtcPou"]
[Black "LeoWin2012"]
[Result "0-1"]
[WhiteElo "2006"]
[BlackElo "2197"]
[TimeControl "180+1"]
[EndTime "9:29:10 PST"]
[Termination "LeoWin2012 won by resignation"]

1. e4 {[%clk 0:02:55.8]} 1... e6 {[%clk 0:02:43.9]} 2. d4 {[%clk 0:02:55.5]}
2... d5 {[%clk 0:02:44.5]} 3. Nd2 {[%clk 0:02:55.3]} 3... h6 {[%clk 0:02:39.5]}
4. Ngf3 {[%clk 0:02:52.1]} 4... Nf6 {[%clk 0:02:38.6]} 5. exd5 {[%clk
0:02:50.4]} 5... exd5 {[%clk 0:02:37]} 6. Bd3 {[%clk 0:02:50.2]} 6... Bd6 {[%clk
0:02:35.7]} 7. h3 {[%clk 0:02:49.8]} 7... O-O {[%clk 0:02:35.1]} 8. O-O {[%clk
0:02:49.8]} 8... Re8 {[%clk 0:02:24.2]} 9. c4 {[%clk 0:02:49.4]} 9... c6 {[%clk
0:02:17.8]} 10. b3 {[%clk 0:02:47]} 10... Nbd7 {[%clk 0:02:15.3]} 11. Bb2 {[%clk
0:02:46.5]} 11... Bc7 {[%clk 0:02:11]} 12. Qc2 {[%clk 0:02:44]} 12... a6 {[%clk
0:02:00.4]} 13. Rfe1 {[%clk 0:02:42.9]} 13... Nf8 {[%clk 0:01:57.5]} 14. Ne5
{[%clk 0:02:41]} 14... Ne6 {[%clk 0:01:52.9]} 15. cxd5 {[%clk 0:02:22.7]} 15...
cxd5 {[%clk 0:01:51.1]} 16. Rac1 {[%clk 0:02:19.6]} 16... Bd7 {[%clk 0:01:48.1]}
17. Nxf7 {[%clk 0:01:49.3]} 17... Kxf7 {[%clk 0:01:46.4]} 18. Bg6+ {[%clk
0:01:47.4]} 18... Kg8 {[%clk 0:01:44.3]} 19. Bxe8 {[%clk 0:01:43.9]} 19... Nxe8
{[%clk 0:01:45.2]} 20. Qg6 {[%clk 0:01:38.5]} 20... Qf6 {[%clk 0:01:42.9]} 21.
Qh5 {[%clk 0:01:24]} 21... Qf4 {[%clk 0:01:35.5]} 22. Nf3 {[%clk 0:01:21.6]}
22... Nf6 {[%clk 0:01:35.2]} 23. Qg6 {[%clk 0:01:18.2]} 23... Ne4 {[%clk
0:01:20.4]} 24. Rc2 {[%clk 0:01:05.4]} 24... N6g5 {[%clk 0:01:17.1]} 25. Ne5
{[%clk 0:01:02.2]} 25... Bf5 {[%clk 0:01:06]} 26. Qh5 {[%clk 0:00:54.2]} 26...
Bxe5 {[%clk 0:00:51.3]} 27. dxe5 {[%clk 0:00:53.9]} 27... Bxh3 {[%clk
0:00:48.1]} 28. gxh3 {[%clk 0:00:40.3]} 28... Nf3+ {[%clk 0:00:45.6]} 29. Kf1
{[%clk 0:00:33.2]} 29... Nxe1 {[%clk 0:00:11.5]} 30. Kxe1 {[%clk 0:00:33]} 30...
Ng5 {[%clk 0:00:08.3]} 31. e6 {[%clk 0:00:22.1]} 31... Nxe6 {[%clk 0:00:03.1]}
32. Qg6 {[%clk 0:00:20.6]} 32... Qf7 {[%clk 0:00:03.1]} 33. Qg4 {[%clk
0:00:15.7]} 33... Re8 {[%clk 0:00:03]} 34. Re2 {[%clk 0:00:15]} 34... Nf4 {[%clk
0:00:01.9]} 35. Rxe8+ {[%clk 0:00:11.8]} 35... Qxe8+ {[%clk 0:00:02.8]} 36. Kf1
{[%clk 0:00:12.1]} 36... Ng6 {[%clk 0:00:02]} 37. h4 {[%clk 0:00:06.2]} 37...
Qf7 {[%clk 0:00:01.7]} 38. h5 {[%clk 0:00:05.7]} 38... Ne7 {[%clk 0:00:02.2]}
39. Qd7 {[%clk 0:00:05.6]} 39... Kh7 {[%clk 0:00:02.4]} 40. Qg4 {[%clk
0:00:04.9]} 40... Kg8 {[%clk 0:00:02.2]} 41. Qe2 {[%clk 0:00:04.7]} 41... Nf5
{[%clk 0:00:02.5]} 42. Qd3 {[%clk 0:00:04.1]} 42... d4 {[%clk 0:00:02.1]} 43.
Bxd4 {[%clk 0:00:03.4]} 43... Nxd4 {[%clk 0:00:03]} 44. Qxd4 {[%clk 0:00:04]}
44... Qf5 {[%clk 0:00:03.6]} 45. Qd8+ {[%clk 0:00:04.1]} 45... Kh7 {[%clk
0:00:04]} 46. Qd1 {[%clk 0:00:04.1]} 46... b5 {[%clk 0:00:02.5]} 47. Kg2 {[%clk
0:00:03.9]} 47... a5 {[%clk 0:00:02.8]} 48. Kf1 {[%clk 0:00:04.3]} 48... Qg5
{[%clk 0:00:03.1]} 49. Ke2 {[%clk 0:00:04.7]} 49... Qxh5+ {[%clk 0:00:03.1]} 50.
Kd2 {[%clk 0:00:04.4]} 50... Qxd1+ {[%clk 0:00:04]} 51. Kxd1 {[%clk 0:00:05.2]}
51... h5 {[%clk 0:00:04.6]} 52. Ke2 {[%clk 0:00:05.8]} 52... h4 {[%clk
0:00:05.1]} 53. Kf3 {[%clk 0:00:06]} 53... g5 {[%clk 0:00:05.5]} 54. Kg4 {[%clk
0:00:06.7]} 54... Kg6 {[%clk 0:00:06.1]} 55. a4 {[%clk 0:00:05.5]} 55... bxa4
{[%clk 0:00:04]} 56. bxa4 {[%clk 0:00:05.7]} 56... Kf6 {[%clk 0:00:04.7]} 57. f3
{[%clk 0:00:03.3]} 57... Ke5 {[%clk 0:00:04.8]} 58. Kxg5 {[%clk 0:00:03.3]}
58... h3 {[%clk 0:00:05.5]} 59. f4+ {[%clk 0:00:02.9]} 59... Ke4 {[%clk
0:00:06.2]} 60. f5 {[%clk 0:00:03.3]} 60... h2 {[%clk 0:00:07.1]} 61. f6 {[%clk
0:00:03.9]} 61... h1=Q {[%clk 0:00:08]} 62. f7 {[%clk 0:00:04]} 62... Qf3 {[%clk
0:00:08.9]} 63. Kg6 {[%clk 0:00:04.2]} 63... Kd4 {[%clk 0:00:07.8]} 64. Kg7
{[%clk 0:00:04.8]} 64... Kc4 {[%clk 0:00:08.3]} 65. f8=Q {[%clk 0:00:05.4]}
65... Qxf8+ {[%clk 0:00:08.7]} 66. Kxf8 {[%clk 0:00:06.3]} 66... Kb4 {[%clk
0:00:09.3]} 67. Ke7 {[%clk 0:00:07.2]} 67... Kxa4 {[%clk 0:00:09.6]} 68. Kd6
{[%clk 0:00:08.1]} 68... Kb3 {[%clk 0:00:10.5]} 69. Kd5 {[%clk 0:00:08.6]} 69...
a4 {[%clk 0:00:11.2]} 70. Kd4 {[%clk 0:00:09.5]} 70... a3 {[%clk 0:00:11.6]} 71.
Kd3 {[%clk 0:00:10.4]} 71... a2 {[%clk 0:00:11.6]} 72. Kd2 {[%clk 0:00:11.3]}
72... a1=Q {[%clk 0:00:12.5]} 0-1

[Event "Early-Titled-Tuesday-Blitz-January-23-2024"]
[Site "Chess.com"]
[Date "2024.01.23"]
[Round "8"]
[White "sokidze"]
[Black "FGHSMN"]
[Result "1-0"]
[WhiteElo "2854"]
[BlackElo "2983"]
[TimeControl "180+1"]
[EndTime "9:29:13 PST"]
[Termination "sokidze won by resignation"]

1. d4 {[%clk 0:03:00.9]} 1... Nf6 {[%clk 0:03:00]} 2. c4 {[%clk 0:03:00.6]} 2...
b6 {[%clk 0:03:00.4]} 3. Nf3 {[%clk 0:02:58.5]} 3... Bb7 {[%clk 0:03:00.5]} 4.
g3 {[%clk 0:02:59.2]} 4... g6 {[%clk 0:03:01.2]} 5. Bg2 {[%clk 0:02:59.1]} 5...
Bg7 {[%clk 0:03:01.2]} 6. O-O {[%clk 0:02:59.6]} 6... O-O {[%clk 0:03:01.7]} 7.
d5 {[%clk 0:02:57.8]} 7... Ne4 {[%clk 0:03:00.4]} 8. Nfd2 {[%clk 0:02:51.7]}
8... Nc5 {[%clk 0:02:56.4]} 9. Nc3 {[%clk 0:02:41]} 9... e6 {[%clk 0:02:54.9]}
10. Qc2 {[%clk 0:02:37.1]} 10... a5 {[%clk 0:02:49]} 11. b3 {[%clk 0:02:33.1]}
11... Nba6 {[%clk 0:02:46.6]} 12. a3 {[%clk 0:02:32.1]} 12... Qe7 {[%clk
0:02:26.7]} 13. Bb2 {[%clk 0:02:28.3]} 13... c6 {[%clk 0:02:23.3]} 14. e4 {[%clk
0:02:09.5]} 14... Rac8 {[%clk 0:02:22.5]} 15. Rad1 {[%clk 0:02:01.6]} 15... d6
{[%clk 0:02:21]} 16. Rfe1 {[%clk 0:01:41]} 16... Rfe8 {[%clk 0:02:13.6]} 17.
dxc6 {[%clk 0:01:25.9]} 17... Bxc6 {[%clk 0:02:12.7]} 18. Nf3 {[%clk 0:01:22.3]}
18... Nd7 {[%clk 0:01:47.1]} 19. Nd4 {[%clk 0:01:14.3]} 19... Bxd4 {[%clk
0:01:10.4]} 20. Rxd4 {[%clk 0:01:13.9]} 20... e5 {[%clk 0:01:10.3]} 21. Rd2
{[%clk 0:01:07.8]} 21... Ndc5 {[%clk 0:01:09.2]} 22. Red1 {[%clk 0:01:03.2]}
22... Red8 {[%clk 0:01:08.7]} 23. Bh3 {[%clk 0:00:43.4]} 23... Rb8 {[%clk
0:01:02.6]} 24. Nd5 {[%clk 0:00:38.7]} 24... Bxd5 {[%clk 0:01:02.7]} 25. Rxd5
{[%clk 0:00:39.6]} 25... Nc7 {[%clk 0:01:00.8]} 26. R5d2 {[%clk 0:00:40.1]}
26... N5e6 {[%clk 0:00:53.1]} 27. Bxe6 {[%clk 0:00:30.7]} 27... Nxe6 {[%clk
0:00:48.8]} 28. a4 {[%clk 0:00:25.6]} 28... Rd7 {[%clk 0:00:46]} 29. Bxe5 {[%clk
0:00:20.6]} 29... Rbd8 {[%clk 0:00:19.6]} 30. Bb2 {[%clk 0:00:20.2]} 30... Ng5
{[%clk 0:00:19.6]} 31. Qc3 {[%clk 0:00:18.9]} 31... f6 {[%clk 0:00:14.2]} 32. f3
{[%clk 0:00:15.7]} 32... Kg7 {[%clk 0:00:12.6]} 33. Kg2 {[%clk 0:00:14.2]} 33...
h5 {[%clk 0:00:12.4]} 34. h4 {[%clk 0:00:13.9]} 34... Nf7 {[%clk 0:00:12.9]} 35.
Rd5 {[%clk 0:00:12.8]} 35... Ne5 {[%clk 0:00:13]} 36. Ba3 {[%clk 0:00:11.6]}
36... Qe6 {[%clk 0:00:12.8]} 37. Qd4 {[%clk 0:00:10.3]} 37... Kh7 {[%clk
0:00:12.1]} 38. Qxb6 {[%clk 0:00:08.9]} 38... f5 {[%clk 0:00:11]} 39. Rxd6
{[%clk 0:00:07.8]} 39... Qf7 {[%clk 0:00:06.4]} 40. Rxd7 {[%clk 0:00:04.9]}
40... Rxd7 {[%clk 0:00:07]} 41. Rxd7 {[%clk 0:00:05.6]} 41... Nxd7 {[%clk
0:00:06.8]} 42. Qd6 {[%clk 0:00:05.4]} 42... fxe4 {[%clk 0:00:07]} 43. fxe4
{[%clk 0:00:06.3]} 43... Nf6 {[%clk 0:00:07.3]} 44. Qe7 {[%clk 0:00:04.5]} 44...
Qxe7 {[%clk 0:00:06.4]} 45. Bxe7 {[%clk 0:00:05.4]} 45... Nxe4 {[%clk
0:00:07.3]} 46. Bd8 {[%clk 0:00:04.1]} 46... Nc5 {[%clk 0:00:05.1]} 47. Bxa5
{[%clk 0:00:03.9]} 47... Nxb3 {[%clk 0:00:05.8]} 48. Bb6 {[%clk 0:00:04.1]}
48... Kg7 {[%clk 0:00:05]} 49. a5 {[%clk 0:00:03.9]} 49... Nd2 {[%clk
0:00:04.9]} 50. c5 {[%clk 0:00:03.6]} 50... Nc4 {[%clk 0:00:02.4]} 51. a6 {[%clk
0:00:04.2]} 51... Ne3+ {[%clk 0:00:01.5]} 52. Kf3 {[%clk 0:00:04]} 1-0